bitfinex-derivatives/quotes_ETHF0:USTF0_20251003
["timestamp","ask_amount","ask_price","bid_price","bid_amount"]
[1759474129612,1.37263906,4471.6,4471.5,0.00184294]
[1759474130213,1.37263906,4471.6,4471.5,0.21674294]
[1759474134522,1.37263906,4471.6,4471.5,0.00184294]
[1759474135219,6.59663906,4471.6,4471.5,0.00184294]
[1759474136225,0.1307,4471.0,4470.0,0.1296]
[1759474136422,0.1307,4471.0,4470.0,0.224]
[1759474136423,0.3151,4470.7,4470.0,0.224]
[1759474136723,1.187387,4470.6,4470.5,0.2149]
[1759474136924,1.187387,4470.6,4470.5,0.4337]
[1759474137119,0.451887,4470.6,4470.5,0.4337]
[1759474137320,0.00200695,4470.6,4470.5,8.71313095]
[1759474138422,0.00200695,4470.6,4470.5,9.03273095]
[1759474141119,0.5339,4471.7,4471.6,1.15555]
[1759474141317,0.98594859,4471.7,4471.6,1.15555]
[1759474141922,0.3256,4472.1,4472.0,0.82712]
[1759474142123,0.77972468,4472.1,4472.0,1.13142]
[1759474142427,0.98382468,4472.1,4472.0,1.13142]
[1759474144729,1.20182468,4472.1,4472.0,1.13142]
[1759474145426,1.20182468,4472.1,4472.0,0.4249]
[1759474145633,0.7477,4471.8,4471.7,0.224]
[1759474146836,0.5472,4471.5,4471.4,0.2055]
[1759474147032,0.8728,4471.5,4471.4,0.2055]
[1759474147336,0.8728,4471.5,4471.4,0.60777]
[1759474147534,0.8728,4471.5,4471.4,0.2055]
[1759474147736,0.8728,4471.5,4471.2,0.62628]
[1759474147936,0.4221,4471.3,4471.2,0.83178]
[1759474148237,0.7477,4471.3,4471.2,0.60778]
[1759474148532,0.7477,4471.3,4471.2,0.2055]
[1759474151636,0.7477,4471.3,4471.2,0.4249]
[1759474152838,0.7477,4471.3,4471.2,0.7292]
[1759474153338,0.7477,4471.3,4471.2,0.9532]
[1759474155435,0.1251,4472.0,4471.2,0.5283]
[1759474155632,1.19870915,4471.9,4471.8,0.2055]
[1759474156433,1.19870915,4471.9,4471.8,0.9532]
[1759474156738,0.53166657,4472.1,4472.0,0.7292]
[1759474156927,0.98260173,4472.1,4472.0,0.7292]
[1759474157328,0.53166657,4472.1,4472.0,0.7292]
[1759474157736,0.00196657,4472.1,4472.0,5.8051]
[1759474159434,0.53166657,4472.1,4472.0,0.7292]
[1759474159637,0.53166657,4472.1,4472.0,0.9522]
[1759474160038,0.74966657,4472.1,4472.0,0.7292]
[1759474160241,0.32756657,4472.1,4472.0,0.9522]
[1759474160437,0.53166657,4472.1,4472.0,0.9522]
[1759474161040,0.32756657,4472.1,4472.0,0.9522]
[1759474161236,0.00196657,4472.1,4472.0,0.9522]
[1759474161945,0.00196657,4472.1,4472.0,1.0281]
[1759474162346,0.00196657,4472.1,4472.0,7.23294059]
[1759474162639,0.00196657,4472.1,4472.0,6.0281]
[1759474163640,0.74966657,4472.1,4472.0,0.9522]
[1759474164047,0.74966657,4472.1,4472.0,0.2055]
[1759474164246,0.74966657,4472.1,4472.0,0.4285]
[1759474164846,0.74966657,4472.1,4472.0,0.223]
[1759474165449,0.74966657,4472.1,4472.0,1.35442]
[1759474166248,0.74966657,4472.1,4472.0,1.05012]
[1759474167546,0.4653,4472.0,4471.6,3.2078]
[1759474167738,0.7665,4471.7,4471.6,3.8349]
[1759474167942,0.7665,4471.7,4471.6,4.1637]
[1759474168144,0.7665,4471.7,4471.6,4.56595]
[1759474168744,0.7665,4471.7,4471.6,4.23715]
[1759474168941,0.7665,4471.7,4471.6,0.223]
[1759474172648,0.1243,4471.5,4471.2,0.223]
[1759474172851,0.7368,4471.3,4471.2,0.83678]
[1759474173356,0.7368,4471.3,4471.2,1.05518]
[1759474173559,0.7368,4471.3,4471.2,1.37018]
[1759474174855,0.7368,4471.3,4471.2,0.6529]
[1759474176153,0.3018,4471.3,4471.2,0.9679]
[1759474176458,0.5593,4471.5,4471.2,0.62529]
[1759474176753,0.2161,4471.3,4471.2,0.62529]
[1759474176958,0.7368,4471.3,4471.2,0.83679]
[1759474178361,0.7368,4471.3,4471.2,0.4345]
[1759474181461,0.7368,4471.3,4471.2,0.9679]
[1759474182161,0.5179,4471.3,4471.2,0.9679]
[1759474182760,0.3018,4471.3,4471.2,0.9679]
[1759474182960,0.7368,4471.9,4471.8,0.2115]
[1759474183158,1.18825862,4471.9,4471.8,0.2115]
[1759474185159,1.18825862,4471.9,4471.8,0.83214]
[1759474185365,0.7368,4471.9,4471.8,1.14714]
[1759474186760,0.00196657,4472.1,4472.0,0.40222]
[1759474186959,0.30376657,4472.1,4472.0,1.37012]
[1759474188259,0.51986657,4472.1,4472.0,1.37012]
[1759474190970,0.00196657,4472.1,4472.0,1.37012]
[1759474191267,0.30376657,4472.1,4472.0,1.37012]
[1759474191869,1.14097657,4472.1,4472.0,0.223]
[1759474192360,1.59266852,4472.1,4472.0,0.223]
[1759474192966,1.59266852,4472.1,4472.0,0.4345]
[1759474193156,1.14097657,4472.1,4472.0,0.4345]
[1759474193360,0.73876657,4472.1,4472.0,0.83672]
[1759474193765,0.73876657,4472.1,4472.0,0.4345]
[1759474194370,0.73876657,4472.1,4472.0,0.9679]
[1759474196367,0.73876657,4472.1,4472.0,0.6529]
[1759474196974,0.73876657,4472.1,4472.0,0.9679]
[1759474197468,0.7368,4472.7,4472.6,0.2115]
[1759474197671,0.7368,4472.7,4472.6,4.57786]
[1759474198371,0.73862436,4472.7,4472.6,4.57786]
[1759474198572,0.30362436,4472.7,4472.6,4.57786]
[1759474198773,0.00182436,4472.7,4472.6,4.57786]
[1759474199770,0.30362436,4472.7,4472.6,4.57786]
[1759474200778,0.51972436,4472.7,4472.6,4.57786]
[1759474201072,0.73862436,4472.7,4472.6,3.6377]
[1759474201268,0.73862436,4472.7,4472.6,3.6423]
[1759474201472,0.73862436,4472.7,4472.6,3.4308]
[1759474201671,0.73862436,4472.7,4472.6,0.223]
[1759474201876,0.73862436,4472.7,4472.1,3.2078]
[1759474201877,0.7351,4472.2,4472.1,3.2078]
[1759474203681,1.1373,4472.2,4472.1,3.2078]
[1759474204372,0.7351,4472.2,4472.1,3.2078]
[1759474204575,1.1373,4472.2,4472.1,3.2078]
[1759474205481,1.1373,4472.2,4471.9,0.223]
[1759474205681,0.8623,4472.0,4471.6,0.3281]
[1759474205876,0.8623,4472.0,4471.9,0.2014]
[1759474206281,1.26452,4472.0,4471.9,0.2014]
[1759474207483,0.8623,4472.0,4471.9,0.2014]
[1759474208588,0.8623,4472.0,4471.2,1.20484059]
[1759474208589,0.7351,4471.3,4471.2,0.80262156]
[1759474208786,0.1272,4471.0,4470.9,4.01042156]
[1759474208983,0.8623,4471.0,4470.9,3.4092]
[1759474210587,1.26461,4471.0,4470.9,3.4092]
[1759474210984,0.8623,4471.0,4470.9,3.4092]
[1759474211185,2.8623,4471.0,4470.9,3.4092]
[1759474211487,3.26461,4471.0,4470.9,3.4092]
[1759474211685,3.26461,4471.0,4470.9,3.6322]
[1759474213278,2.8623,4471.0,4470.9,3.8515]
[1759474213480,2.8623,4471.0,4470.9,4.1796]
[1759474214491,2.8623,4471.0,4470.9,0.9718]
[1759474216495,2.8623,4471.0,4470.9,0.6437]
[1759474216888,2.8623,4471.0,4470.9,0.9718]
[1759474217582,2.8623,4471.0,4470.9,0.6437]
[1759474218395,2.8623,4471.0,4470.9,0.4244]
[1759474219292,0.2147,4470.7,4470.6,0.3281]
[1759474219596,0.7351,4470.7,4470.6,0.7525]
[1759474219895,0.7351,4470.7,4470.6,0.9718]
[1759474220897,0.7351,4470.7,4470.6,0.7488]
[1759474221194,0.7351,4470.7,4470.6,0.4207]
[1759474221394,0.7351,4470.7,4470.6,0.6437]
[1759474221593,0.7351,4470.7,4470.6,0.9718]
[1759474224091,0.7351,4470.7,4470.6,0.223]
[1759474224297,1.13744,4470.6,4470.5,0.00163095]
[1759474225897,0.7351,4470.6,4470.5,0.00163095]
[1759474226698,0.7351,4470.6,4470.5,0.20303095]
[1759474226896,0.7351,4470.6,4470.5,0.00163095]
[1759474226897,1.13744,4470.6,4470.5,0.00163095]
[1759474227296,0.7351,4470.6,4470.5,0.00163095]
[1759474227598,0.7351,4470.6,4470.5,0.21573095]
[1759474228196,0.7351,4470.6,4470.5,1.14848095]
[1759474228392,0.7351,4470.6,4470.5,0.43753095]
[1759474228602,0.7351,4470.6,4470.5,1.14848095]
[1759474229199,0.7351,4470.6,4470.5,0.74613095]
[1759474229397,0.7351,4470.6,4470.5,0.43753095]
[1759474230100,0.3053,4470.6,4470.5,0.74613095]
[1759474230598,2.3372,4471.0,4470.8,0.5304]
[1759474230802,0.5438,4470.9,4470.8,0.7445]
[1759474234306,2.0,4471.0,4470.9,1.14942]
[1759474234602,2.885,4471.0,4470.9,0.2017]
[1759474234907,2.885,4471.0,4470.9,0.4257]
[1759474235204,2.885,4471.0,4470.9,0.224]
[1759474235501,0.7512,4470.6,4470.5,3.41113095]
[1759474237704,0.7512,4470.6,4470.5,3.20943095]
[1759474238305,1.20231691,4470.6,4470.5,3.20943095]
[1759474238702,0.40242,4469.8,4469.4,4.41158668]
[1759474239009,0.885,4469.5,4469.4,3.2078]
[1759474239400,0.885,4469.5,4469.1,0.224]
[1759474239708,0.88722698,4469.5,4469.1,0.2259145]
[1759474240111,1.20207528,4469.4,4469.3,0.7471]
[1759474240411,0.7512,4469.4,4469.3,0.4231]
[1759474241403,0.7512,4469.4,4469.1,0.2259145]
[1759474241907,0.885,4468.5,4467.9,0.02238213]
[1759474242211,0.885,4468.0,4467.9,0.02238213]
[1759474242403,0.885,4468.0,4467.9,0.22408213]
[1759474242707,0.885,4468.0,4467.9,0.62667213]
[1759474243008,0.885,4468.0,4467.9,1.17435578]
[1759474243210,0.3335,4468.4,4468.2,0.40256]
[1759474243411,0.1338,4468.0,4467.9,0.02466578]
[1759474243610,0.885,4468.0,4467.9,0.85035578]
[1759474243807,0.3401,4468.5,4468.4,0.40254]
[1759474244003,3.2078,4469.2,4468.7,0.40251]
[1759474244308,0.4177,4468.8,4468.7,0.82561]
[1759474244504,0.7512,4468.8,4468.7,0.82561]
[1759474244702,0.5398,4468.8,4468.7,1.14961]
[1759474245703,0.7512,4468.8,4468.7,1.14961]
[1759474246607,3.2078,4469.7,4469.4,0.2017]
[1759474246905,0.20852698,4469.5,4469.4,1.14955]
[1759474248110,0.55372698,4469.5,4468.5,0.1295]
[1759474248409,0.41992698,4469.5,4469.4,0.5257]
[1759474248613,0.41992698,4469.5,4469.4,0.7471]
[1759474251412,0.20852698,4469.5,4469.4,0.7471]
[1759474251612,0.00222698,4469.5,4469.4,0.7471]
[1759474252816,0.00222698,4469.5,4469.4,5.7471]
[1759474253119,3.2078,4470.2,4470.1,1.14949]
[1759474253414,3.2078,4470.2,4470.1,1.37349]
[1759474253608,3.6255,4470.8,4470.7,1.14943]
[1759474254015,3.62789253,4470.8,4470.7,1.14943]
[1759474255818,3.62982766,4470.0,4469.6,4.21389]
[1759474256018,3.62982766,4470.0,4469.7,0.224]
[1759474256321,4.51482766,4470.0,4469.9,0.40241]
[1759474256912,4.09712766,4470.0,4469.9,0.62641]
[1759474257119,3.76362766,4470.0,4469.9,0.62641]
[1759474257426,3.08123162,4470.0,4469.9,5.62641]
[1759474257716,2.18157162,4470.0,4469.9,5.62641]
[1759474257912,0.42965242,4470.0,4469.9,5.62641]
[1759474258118,0.33589253,4470.8,4470.7,0.40233]
[1759474258317,0.54219253,4470.8,4470.7,0.62633]
[1759474259115,0.75359253,4470.8,4470.7,0.62633]
[1759474260815,0.75359253,4470.8,4470.7,0.224]
[1759474261020,0.75359253,4470.8,3775.0,0.2]
[1759474261021,0.5449,4470.4,4470.3,0.40236]
[1759474261215,0.7512,4470.4,4470.1,0.40239]
[1759474261516,0.1338,4470.5,4469.4,3.61025]
[1759474261517,0.1338,4469.5,4469.4,3.61025]
[1759474261820,0.4673,4469.5,4469.4,3.83425]
[1759474262225,0.4673,4469.5,4469.4,8.83425]
[1759474262919,0.6736,4469.5,4469.4,8.83425]
[1759474263120,0.6736,4469.5,4469.4,3.83425]
[1759474265327,0.6736,4469.5,4469.4,3.61025]
[1759474265525,0.8943,4469.5,4469.4,3.83425]
[1759474266627,0.8943,4469.5,4469.4,3.61025]
[1759474266831,0.8943,4469.5,4469.4,3.83425]
[1759474268829,0.6736,4469.5,4469.4,3.83425]
[1759474269126,0.4673,4469.5,4469.4,3.83425]
[1759474270018,0.6777,4469.5,4469.4,3.83425]
[1759474273725,0.8984,4469.5,4469.4,3.4318]
[1759474273932,0.95566,4469.3,4469.2,0.224]
[1759474274226,0.7636,4468.9,4468.8,3.2078]
[1759474274427,0.7636,4468.9,4468.8,3.4318]
[1759474274731,0.3325,4468.9,4468.8,3.4318]
[1759474275129,0.1257,4469.0,4468.9,0.4025]
[1759474275328,0.1338,4469.5,4468.9,0.4025]
[1759474275329,0.1338,4469.5,4469.4,0.40245]
[1759474275530,0.1338,4469.5,4469.4,3.83425]
[1759474276031,0.1338,4470.0,4469.9,0.40241]
[1759474276225,0.1338,4470.0,4469.9,0.62641]
[1759474276425,0.3442,4470.0,4469.9,3.83421]
[1759474276727,0.5649,4470.0,4469.9,0.224]
[1759474277326,0.8974,4470.0,4469.9,0.224]
[1759474287539,0.8974,4470.0,4469.6,0.40243]
[1759474288042,1.2998,4470.0,4469.7,0.224]
[1759474288934,0.9673,4470.0,4469.7,0.62642]
[1759474289136,0.7503,4469.8,4469.7,0.40242]
[1759474289634,0.7503,4469.8,4469.7,0.62642]
[1759474290441,0.7503,4469.8,4469.7,0.224]
[1759474294345,0.7503,4469.8,4469.7,41.024]
[1759474295942,0.7503,4469.8,4469.7,0.224]
[1759474296342,0.7503,4469.8,4469.5,1.20049213]
[1759474296343,0.4284,4469.8,4469.5,42.00049213]
[1759474296543,0.4081,4469.7,4469.5,42.00049213]
[1759474296848,0.3075,4469.1,4469.0,1.20049213]
[1759474297041,0.7156,4469.1,4469.0,1.42449213]
[1759474298241,0.7156,4469.1,4469.0,0.224]
[1759474301037,0.4081,4468.8,4468.7,1.60300213]
[1759474301238,0.7156,4468.8,4468.7,0.62651]
[1759474301443,0.7156,4468.8,4468.7,0.40251]
[1759474301638,0.7156,4468.8,4468.7,0.224]
[1759474301947,0.7156,4468.8,4468.4,1.20049213]
[1759474302251,0.7156,4468.2,4468.1,1.20049213]
[1759474302448,0.7156,4468.2,4468.1,1.42449213]
[1759474302944,0.7156,4468.2,4468.1,0.224]
[1759474304053,0.7156,4468.2,4468.1,1.42449213]
[1759474304350,0.7156,4468.2,4468.1,0.224]
[1759474304753,0.5133,4468.2,4468.1,0.224]
[1759474304941,0.7156,4468.2,4468.1,0.224]
[1759474305146,0.4081,4468.2,4468.0,0.40257]
[1759474305343,0.6423,4468.0,4467.9,40.82466578]
[1759474305551,0.6423,4468.0,4467.9,41.04866578]
[1759474305849,0.8446,4468.0,4467.9,0.24866578]
[1759474306049,0.8446,4468.0,4467.9,0.02466578]
[1759474306248,0.4081,4467.2,4467.1,1.62782407]
[1759474306553,0.7156,4467.2,4467.1,0.65133194]
[1759474306751,0.7156,4467.2,4467.1,41.45133194]
[1759474307053,0.7156,4467.2,4467.1,42.65182407]
[1759474307353,0.71811532,4467.2,4467.1,41.45325432]
[1759474307557,0.71811532,4467.2,4467.1,41.05059432]
[1759474308047,0.71811532,4467.2,4467.1,0.02659432]
[1759474308251,0.5371,4466.5,4466.0,1.20049213]
[1759474308443,0.5371,4466.5,4465.7,0.17620673]
[1759474308444,0.8446,4466.0,4465.9,0.40277]
[1759474308648,0.8446,4466.0,4465.9,0.62677]
[1759474309145,0.3075,4465.9,4465.6,3.2078]
[1759474309345,5.5371,4466.0,4465.6,0.00271933]
[1759474309346,0.7156,4465.7,4465.6,0.00271933]
[1759474310156,5.7156,4465.7,4465.6,0.00271933]
[1759474311046,0.7156,4465.2,4465.1,0.224]
[1759474311345,0.7156,4464.6,4464.5,0.47266251]
[1759474311549,0.7156,4464.6,4464.5,0.69666251]
[1759474312052,0.7156,4464.6,4464.5,0.47452898]
[1759474312259,0.7156,4464.6,4462.4,1.0077]
[1759474312260,0.7156,4463.3,4463.2,1.20049213]
[1759474312560,0.7156,4463.3,4463.2,0.443]
[1759474312759,0.3075,4463.2,4463.0,3.2078]
[1759474313054,0.3075,4463.2,4461.9,0.17832234]
[1759474313055,0.8446,4462.0,4461.9,0.17832234]
[1759474313246,0.3075,4461.4,4461.1,40.8]
[1759474313443,0.3075,4461.4,4461.2,3.7477]
[1759474313651,0.3075,4461.9,4461.2,3.2078]
[1759474313953,0.13160485,4462.0,4461.8,0.40314]
[1759474313954,0.31010485,4462.0,4461.8,0.40314]
[1759474314156,0.00260485,4462.0,4461.9,0.5399]
[1759474314650,0.3075,4463.2,4462.1,0.3149]
[1759474314861,0.71045,4463.9,4463.1,3.5227]
[1759474315045,0.71045,4463.9,4463.2,0.225]
[1759474315046,0.3075,4463.9,4463.2,0.225]
[1759474315247,0.3075,4463.9,4463.3,0.3149]
[1759474315448,0.3075,4464.4,4463.8,0.3149]
[1759474315645,0.00171004,4464.4,4464.3,3.5227]
[1759474315851,0.00171004,4464.4,4464.3,3.65043053]
[1759474316148,0.00171004,4464.4,4464.3,0.00273053]
[1759474316149,0.30921004,4464.4,4464.3,0.00273053]
[1759474316455,0.30921004,4464.4,4464.3,0.54263053]
[1759474316456,0.00171004,4464.4,4464.3,0.54263053]
[1759474316660,0.30921004,4464.4,4464.3,0.22773053]
[1759474317154,0.30921004,4464.4,4464.3,0.00273053]
[1759474317155,5.30921004,4464.4,4464.3,0.00273053]
[1759474317354,0.4365,4464.0,4462.7,0.3149]
[1759474317658,0.3075,4463.9,4463.3,0.3149]
[1759474317847,0.3075,4464.3,4463.6,0.40297]
[1759474318155,0.00171004,4464.4,4464.2,0.3149]
[1759474318358,0.00171004,4464.4,4464.3,3.5227]
[1759474318547,0.3075,4465.4,4464.3,3.4328]
[1759474318858,0.3075,4465.9,4465.1,0.71774]
[1759474319053,0.3075,4465.9,4465.0,0.1262]
[1759474319054,0.3075,4465.9,4465.7,0.40279]
[1759474319256,0.3075,4465.9,4465.8,0.225]
[1759474319560,0.30963838,4465.9,4465.8,0.225]
[1759474319852,0.3075,4465.8,4465.7,0.135]
[1759474320250,5.3075,4465.8,4464.6,3.5227]
[1759474320448,0.3075,4465.4,4464.6,3.2078]
[1759474320649,0.3075,4465.4,4463.5,0.1262]
[1759474320650,3.2078,4464.8,4464.3,0.40291]
[1759474320953,3.2078,4464.8,4464.5,0.40289]
[1759474321353,3.5153,4464.8,4464.6,0.3149]
[1759474321555,0.3075,4465.5,4465.3,0.40282]
[1759474321956,3.2078,4465.6,4465.5,0.7322]
[1759474322157,0.00213838,4465.9,4465.8,0.73218]
[1759474322354,0.00213838,4465.9,4465.8,0.95718]
[1759474323050,0.00213838,4465.9,4465.8,4.16498]
[1759474323457,0.00213838,4465.9,4465.8,44.96498]
[1759474324047,3.2078,4466.8,4466.7,0.7321]
[1759474324252,3.2078,4466.8,4466.7,0.9571]
[1759474324447,3.2078,4466.8,4466.7,0.5544]
[1759474324648,0.3098,4467.8,4466.8,0.3294]
[1759474325059,0.31246039,4467.8,4466.8,0.3294]
[1759474325449,0.31246039,4467.8,4466.9,0.225]
[1759474325657,0.31246039,4467.8,4467.0,0.123]
[1759474326053,0.3098,4467.3,4467.1,0.225]
[1759474326251,0.3098,4467.3,4466.5,0.123]
[1759474326252,0.1239,4467.0,4466.0,3.3308]
[1759474326560,3.2078,4466.8,4466.1,0.225]
[1759474326763,3.5176,4466.8,4466.0,3.3308]
[1759474326958,0.4027,4466.7,4466.1,0.225]
[1759474327461,3.5176,4466.8,4466.1,0.225]
[1759474327663,0.40271,4466.6,4466.0,3.3308]
[1759474327864,0.40271,4466.6,4466.1,0.225]
[1759474328055,0.3098,4466.5,4466.1,0.225]
[1759474328251,0.40271,4466.6,4466.1,0.225]
[1759474328460,0.4027,4466.7,4466.2,0.225]
[1759474328760,3.5176,4466.8,4466.2,0.225]
[1759474329167,3.5176,4466.8,4466.2,0.62774]
[1759474329457,0.3098,4466.2,4466.1,0.225]
[1759474329662,0.3098,4466.7,4466.1,0.5544]
[1759474330157,0.71256,4466.0,4465.6,0.3294]
[1759474330360,0.71258,4465.8,4465.1,40.8]
[1759474330567,0.71258,4465.8,4465.2,0.225]
[1759474330762,0.3098,4465.8,4465.4,0.3294]
[1759474331060,0.3098,4465.8,4465.3,0.40281]
[1759474331061,0.3098,4465.4,4465.3,0.3294]
[1759474331265,0.3098,4465.4,4465.3,0.225]
[1759474331457,0.40281,4465.5,4465.1,0.3294]
[1759474331763,0.40281,4465.5,4465.2,0.225]
[1759474331764,3.5176,4465.3,4465.2,0.225]
[1759474332264,3.5176,4465.3,4464.8,0.73227]
[1759474332455,0.1239,4465.0,4464.2,0.00229679]
[1759474332757,0.3098,4464.3,4464.2,0.00229679]
[1759474333060,0.3098,4464.3,4464.2,0.41469679]
[1759474333061,0.00181496,4464.3,4464.2,0.41469679]
[1759474333356,0.00181496,4464.3,4464.2,0.55669679]
[1759474333959,0.40281,4465.4,4464.3,0.3294]
[1759474334158,0.40283,4465.2,4464.3,0.3294]
[1759474334359,0.3098,4465.3,4464.3,0.3294]
[1759474334360,0.3098,4465.1,4464.5,0.40288]
[1759474334665,0.3098,4465.1,4464.4,0.225]
[1759474334860,0.3098,4465.1,4464.3,0.73231]
[1759474334861,0.3098,4464.9,4464.5,0.225]
[1759474335163,0.3098,4464.9,4464.3,0.73231]
[1759474335365,0.3098,4464.7,4464.3,0.3294]
[1759474335557,0.40287,4464.8,4464.2,0.00229679]
[1759474335758,3.5176,4465.0,4464.3,0.225]
[1759474335956,3.5176,4465.0,4464.8,0.3294]
[1759474336262,3.2078,4465.0,4464.9,0.95726]
[1759474336456,0.00256162,4465.1,4465.0,0.4524]
[1759474336656,0.31236162,4465.1,4465.0,0.3294]
[1759474336862,0.31236162,4465.1,4465.0,0.225]
[1759474337271,0.31236162,4465.1,4464.5,0.73229]
[1759474337463,3.5176,4465.0,4464.9,0.225]
[1759474337662,3.6415,4465.0,4464.2,0.00229679]
[1759474337865,3.6415,4465.0,4464.2,0.11029679]
[1759474338160,0.40288,4464.7,4464.2,0.11029679]
[1759474338361,0.3098,4464.4,4464.2,0.11029679]
[1759474338570,0.3098,4464.4,4464.2,0.51321679]
[1759474338863,0.3098,4464.4,4464.3,0.3294]
[1759474339060,0.3098,4464.4,4464.3,0.9573]
[1759474339259,3.2078,4464.5,4464.4,0.3294]
[1759474339454,3.3317,4465.0,4464.4,0.225]
[1759474339655,3.3317,4465.0,4464.9,0.40286]
[1759474339867,3.6415,4465.0,4464.9,0.40286]
[1759474340167,3.6415,4465.0,4464.6,0.40288]
[1759474340467,0.3098,4464.9,4464.8,0.40286]
[1759474340668,0.3098,4464.9,4464.5,0.40289]
[1759474340869,3.3317,4465.0,4464.5,0.73229]
[1759474341058,3.3317,4465.0,4464.7,0.40287]
[1759474341266,0.3098,4464.9,4464.5,0.3294]
[1759474341568,3.3317,4465.0,4464.8,0.40286]
[1759474341766,0.3098,4464.9,4464.8,0.40286]
[1759474342269,0.3098,4464.9,4464.8,0.73226]
[1759474342967,3.2078,4465.0,4464.9,0.3294]
[1759474343167,0.00256162,4465.1,4464.9,0.3294]
[1759474343168,0.00256162,4465.1,4465.0,0.40285]
[1759474343469,0.00256162,4465.1,4465.0,4.06305]
[1759474344060,3.2078,4466.0,4465.9,0.40277]
[1759474344260,0.3098,4465.9,4465.7,0.62778]
[1759474344461,0.3098,4465.9,4465.7,0.5544]
[1759474344763,0.3098,4465.9,4465.7,0.225]
[1759474344962,3.73446,4466.0,4465.7,0.225]
[1759474345163,3.73618223,4466.0,4465.7,0.225]
[1759474345364,0.40278,4465.8,4465.0,0.40285]
[1759474345665,0.3098,4465.2,4465.1,0.3294]
[1759474345867,3.2078,4465.3,4465.1,0.3294]
[1759474346066,3.2078,4465.3,4465.2,0.3294]
[1759474346265,0.3098,4465.2,4464.9,0.95726]
[1759474346468,3.5176,4465.3,4465.1,0.40283]
[1759474346662,3.5176,4465.3,4465.2,0.3294]
[1759474347272,3.5176,4465.3,4464.9,0.62786]
[1759474347467,3.5176,4465.3,4464.5,3.3308]
[1759474347468,3.2078,4465.3,4464.6,0.40288]
[1759474347778,3.2078,4464.8,4464.4,0.225]
[1759474347960,3.2078,4464.8,4464.3,0.40291]
[1759474347961,0.40288,4464.6,4464.3,0.225]
[1759474348162,0.71391,4464.3,4464.2,0.00229679]
[1759474348368,3.98857589,4464.3,4464.2,0.00229679]
[1759474349262,8.98857589,4464.3,4464.2,0.00229679]
[1759474349463,3.98857589,4464.3,4464.2,0.00229679]
[1759474349670,3.98857589,4464.3,4464.2,0.31449679]
[1759474349971,3.98857589,4464.3,4464.2,0.00229679]
[1759474350175,3.2078,4464.3,4464.2,0.31449679]
[1759474350372,3.2078,4464.9,4464.6,0.40288]
[1759474350572,0.780489,4464.8,4464.6,0.71508]
[1759474350771,0.780489,4464.7,4464.6,0.71508]
[1759474350974,3.2078,4464.9,4464.6,0.71508]
[1759474351169,3.2078,4464.9,4464.7,0.3122]
[1759474351363,3.5188,4464.9,4464.7,0.71507]
[1759474351569,3.2078,4464.9,4464.8,0.3122]
[1759474351973,3.5102,4464.9,4464.8,0.3122]
[1759474352376,3.2078,4464.9,4464.8,0.3122]
[1759474354173,3.5102,4464.9,4464.4,0.225]
[1759474354479,0.3024,4464.8,4464.5,0.3242]
[1759474354874,3.2078,4464.9,4464.5,0.3242]
[1759474355069,3.2078,4464.9,4464.7,0.40287]
[1759474355375,0.3024,4464.8,4464.7,0.72707]
[1759474355976,3.2078,4464.9,4464.8,0.3242]
[1759474356170,0.126,4465.5,4464.4,0.225]
[1759474356171,3.6362,4465.5,4464.5,3.3371]
[1759474356370,0.76766006,4465.4,4465.2,0.72702]
[1759474356570,0.76766006,4465.4,4464.5,3.3371]
[1759474356571,0.3024,4465.2,4464.6,0.3242]
[1759474356868,0.70523,4465.2,4464.6,0.72708]
[1759474358475,0.70523,4465.2,4464.6,0.95208]
[1759474358776,0.3024,4464.8,4464.6,0.225]
[1759474358978,3.61066,4464.9,4464.6,0.225]
[1759474359173,0.3024,4464.8,4464.6,0.225]
[1759474359380,3.2078,4464.9,4464.6,0.225]
[1759474359579,3.2078,4464.9,4464.6,0.40288]
[1759474359785,0.3024,4464.8,4464.6,0.40288]
[1759474360282,0.3024,4464.8,4464.7,0.40287]
[1759474360578,3.2078,4464.9,4464.8,0.3242]
[1759474361083,3.2078,4465.4,4464.8,0.3242]
[1759474361576,0.3024,4465.6,4465.5,0.4028]
[1759474361780,0.3024,4465.9,4465.5,0.727]
[1759474361981,0.3024,4465.9,4465.6,0.40279]
[1759474361982,0.46647251,4465.8,4465.6,0.40279]
[1759474362185,0.3024,4465.9,4465.8,0.3242]
[1759474362379,0.76888803,4465.9,4465.8,0.3242]
[1759474362780,0.3024,4465.8,4465.3,0.5492]
[1759474362976,3.34312223,4466.0,4465.4,0.4028]
[1759474363181,0.76884674,4465.9,4465.3,0.40281]
[1759474363484,0.3024,4465.7,4465.6,0.3242]
[1759474364283,0.722,4465.7,4465.6,0.5394]
[1759474366574,0.722,4465.7,4465.6,0.742]
[1759474366791,0.2182,4465.7,4465.6,0.742]
[1759474366985,3.20952223,4466.0,4465.7,0.3242]
[1759474367181,3.20952223,4466.0,4465.9,1.14477]
[1759474367686,0.00172223,4466.0,4465.9,1.14477]
[1759474368479,0.00172223,4466.0,4465.9,1.36977]
[1759474368680,0.21992223,4466.0,4465.9,0.967]
[1759474369385,0.00172223,4466.0,4465.9,0.967]
[1759474370681,0.00172223,4466.0,4465.9,5.967]
[1759474370884,3.426,4467.1,4467.0,0.5394]
[1759474371086,0.4361,4467.0,4466.6,0.4027]
[1759474371290,0.4361,4467.0,4466.2,0.72693]
[1759474371291,0.3024,4466.4,4466.2,0.72693]
[1759474371483,0.722,4466.3,4466.2,0.92893]
[1759474371884,0.72406173,4466.3,4466.2,1.34673]
[1759474372091,0.42166173,4466.3,4466.2,1.34673]
[1759474372391,0.72406173,4466.3,4466.2,0.944]